Cogmind - Beta 9 @@@ ROGUE MODE // 2019.10.22 @ 01:03:42 Player: eg0nspengler Result: Destroyed by S-10 Pest with Light Assault Rifle Performance ------------- Evolutions (1) 500 Regions Visited (3) 600 Robots Destroyed (23) 115 Value Destroyed (284) 284 Prototype IDs (0) 0 Alien Tech Used (0) 0 Bonus (0) 0 TOTAL SCORE: 1499 Bonus ------- None Cogmind --------- Core Integrity 0/400 Matter 295/300 Energy 99/100 System Corruption 0% Temperature Cool (0) Location -9/Mines Parts ------- Power (1) Propulsion (3) Utility (3) Small Storage Unit Utility Shielding Weapon (2) Inventory (6) Peak State ------------ Power Ion Engine Propulsion Aluminum Leg Compact Wheel Armored Wheel Utility Small Storage Unit Improved Terrain Scanner Utility Shielding Weapon Light EM Pulse Cannon Assault Rifle Inventory Light Ion Engine Light Ion Engine Aluminum Leg Small Matter Pod Structural Scanner Light Assault Rifle [Rating: 12] Favorites ----------- Power Ion Engine Engine Ion Engine Propulsion Aluminum Leg Leg Aluminum Leg Wheel Compact Wheel Utility Small Storage Unit Device Improved Terrain Scanner Storage Small Storage Unit Protection Utility Shielding Weapon Light Assault Rifle Energy Gun EM Pulse Gun Energy Cannon Light EM Pulse Cannon Ballistic Gun Light Assault Rifle Build | -11 -10 -9 -9 ------- Run | Scr Mat Mat Min Slots Evolved 2 | . . 2 . Power . | . . . . Propulsion 1 | . . 1 . Utility 1 | . . 1 . Weapon . | . . . . Parts Attached 23 | 7 2 11 3 Power 3 | 1 . 1 1 Engine 3 | 1 . 1 1 Core . | . . . . Reactor . | . . . . Propulsion 10 | 2 . 6 2 Treads . | . . . . Leg 2 | 2 . . . Wheel 8 | . . 6 2 Hover . | . . . . Flight . | . . . . Utility 4 | 2 . 2 . Device 2 | 1 . 1 . Storage 1 | 1 . . . Processor . | . . . . Hackware . | . . . . Protection 1 | . . 1 . Artifact . | . . . . Weapon 6 | 2 2 2 . Energy Gun 1 | 1 . . . Energy Cannon 1 | . . 1 . Ballistic Gun 4 | 1 2 1 . Ballistic Cannon . | . . . . Launcher . | . . . . Special Weapon . | . . . . Impact Weapon . | . . . . Slashing Weapon . | . . . . Piercing Weapon . | . . . . Special Melee Weapon . | . . . . Unidentified Prototypes . | . . . . Parts Lost 16 | . 1 9 6 Power 3 | . . 2 1 Propulsion 7 | . . 4 3 Utility 2 | . . 1 1 Weapon 4 | . 1 2 1 Highest Loss Streak 6 | . 1 6 6 Average Slot Usage (%) 90 | . 100 95 51 Engine 10 | . 14 10 3 Leg 14 | . 28 2 . Wheel 12 | . . 29 12 Device 11 | . 14 10 7 Storage 12 | . 14 11 11 Protection 5 | . . 10 11 Energy Gun 1 | . 2 . . Energy Cannon 2 | . . 8 . Ballistic Gun 17 | . 25 12 4 Naked Turns . | . . . . Heaviest Build 17 | 13 13 17 10 Greatest Support 44 | 20 20 44 28 Greatest Overweight (x) 1 | . . 1 1 Average Overweight (x) . | . . . . Largest Inventory Capacity 6 | 6 6 6 6 Average Capacity 5 | 5 6 6 6 Most Carried 6 | 6 6 6 1 Average Carried 3 | 3 5 3 . Final Capacity 6 | . . . 6 Final Carried . | . . . . Class Distribution -------------------- 100% | Mutant Dominant Class ---------------- Mutant | -10/Materials Mutant | -9/Materials Mutant | -9/Mines Resources | -11 -10 -9 -9 ----------- Run | Scr Mat Mat Min Matter Collected 526 | 234 168 72 52 Remotely . | . . . . Salvage Created 671 | 85 312 135 139 Parts 50 | 9 17 15 9 Haulers Intercepted . | . . . . Recyclers Shooed 2 | . 2 . . Parts Field Recycled . | . . . . Retrieved Matter . | . . . . Parts Self-Destructed . | . . . . Prevented . | . . . . Kills | -11 -10 -9 -9 ------- Run | Scr Mat Mat Min Combat Hostiles Destroyed 10 | . 6 4 . Guns 6 | . 5 1 . Cannons 1 | . . 1 . AOE 3 | . 1 2 . Classes Destroyed 8 | 2 4 2 . Worker 2 | . 1 1 . Builder 3 | . 2 1 . Tunneler 3 | 1 . 1 1 Recycler 4 | 1 1 . 2 Watcher 1 | . . 1 . Swarmer 7 | . 4 3 . Grunt 2 | . 2 . . Sentry 1 | . . 1 . Best Kill Streak 4 | 2 4 4 3 Combat Bots Only 4 | . 4 3 . Max Kills in Single Turn 3 | 1 1 3 1 Gunslinging . | . . . . Exploded 2 | . 1 2 . Melee . | . . . . Uniques/NPCs Destroyed . | . . . . Combat | -11 -10 -9 -9 -------- Run | Scr Mat Mat Min Damage Taken 1556 | . 392 513 651 Core 462 | . 54 47 361 Absorbed by Shields . | . . . . Core Remaining (%) 89 | 100 78 . . Volleys Fired 72 | 6 34 14 18 Largest 2 | 2 2 2 1 Hottest 76 | 60 60 76 20 Shots Fired 125 | 12 68 27 18 Gun 112 | 12 68 14 18 Cannon 13 | . . 13 . Launcher . | . . . . Special . | . . . . Kinetic 100 | 6 62 14 18 Thermal . | . . . . Explosive . | . . . . Electromagnetic 25 | 6 6 13 . Robot Hit Streak 7 | 5 7 5 5 Robot Miss Streak 4 | 1 4 2 3 Penetration Max . | . . . . Secondary Targets 1 | . 1 . . Max Gunslinging Chain 1 | . 1 . . Shots Hit Robots 68 | 7 38 14 9 Core Hits 38 | 3 19 10 6 Critical Hits . | . . . . Critical Kills . | . . . . Critical Parts Destroyed . | . . . . Melee Attacks . | . . . . Impact . | . . . . Slashing . | . . . . Piercing . | . . . . Sneak Attacks . | . . . . Combat Hostiles . | . . . . Follow-up Attacks . | . . . . Damage Inflicted 1256 | 73 435 679 69 Guns 604 | 73 383 79 69 Cannons 142 | . . 142 . Explosions 506 | . 48 458 . Melee . | . . . . Ramming 4 | . 4 . . Kinetic 482 | 31 303 79 69 Thermal 126 | . 48 78 . Explosive 380 | . . 380 . Electromagnetic 264 | 42 80 142 . Impact . | . . . . Slashing . | . . . . Piercing . | . . . . Highest Corruption . | . . . . Average Corruption . | . . . . Corruption Purged . | . . . . Overload Shots . | . . . . Overflow Damage 89 | . . 89 . Projectiles . | . . . . Explosions 89 | . . 89 . Melee . | . . . . Knockbacks . | . . . . Impact . | . . . . Kinetic . | . . . . Secondary . | . . . . Self-Inflicted Damage 88 | . 2 86 . Shots 1 | . . 1 . Rammed 2 | . 2 . . Targets Rammed 2 | . 2 . . Kicked . | . . . . Crushed . | . . . . Highest Temperature 76 | 20 76 46 . Average Temperature 22 | 14 39 12 . Received Heat Transfer 240 | . 141 99 . Siege Activations . | . . . . Robots Corrupted . | . . . . Combat Hostiles . | . . . . Parts Fried . | . . . . Impact Corruptions . | . . . . Robots Melted . | . . . . Combat Hostiles . | . . . . Parts Melted 1 | . . 1 . Heat Transferred 150 | . 50 100 . Parts Sabotaged . | . . . . Parts Stolen . | . . . . Parts Stripped . | . . . . Power Chain Reactions 2 | . 1 1 . Missiles Intercepted . | . . . . Alert | -11 -10 -9 -9 ------- Run | Scr Mat Mat Min Peak Influence 213 | 10 181 213 80 Average Influence 89 | 2 107 126 57 Maximum Alert Level 1 | . . 1 . Low Security (%) 96 | . . . . Level 1 3 | . . . . Level 2 . | . . . . Level 3 . | . . . . Level 4 . | . . . . Level 5 . | . . . . High Security . | . . . . Max Security . | . . . . Squads Dispatched . | . . . . Investigation . | . . . . Extermination . | . . . . Reinforcement . | . . . . Assault . | . . . . Garrison . | . . . . Intercept . | . . . . Construction Impeded . | . . . . Haulers Reinforced . | . . . . Stealth | -11 -10 -9 -9 --------- Run | Scr Mat Mat Min Distress Signals 3 | . 2 1 . Communications Jammed . | . . . . Distress Signals . | . . . . Times Spotted 26 | . 11 11 4 Peak Tracking Total 6 | . 4 6 4 Tactical Retreats 4 | . 2 2 . Traps | -11 -10 -9 -9 ------- Run | Scr Mat Mat Min Traps Triggered . | . . . . Indirectly . | . . . . Trap Hack Attempts . | . . . . Triggered . | . . . . Disarmed . | . . . . Reprogrammed . | . . . . Reused . | . . . . Traps Extracted . | . . . . Installed . | . . . . Triggered . | . . . . Machines | -11 -10 -9 -9 ---------- Run | Scr Mat Mat Min Machines Disabled 1 | . . 1 . Max in Single Turn 1 | . . 1 . Machines Sabotaged . | . . . . Garrisons Compromised . | . . . . Overloaded Fab Kills . | . . . . Fab Network Shutdowns . | . . . . Hacking | -11 -10 -9 -9 --------- Run | Scr Mat Mat Min Machines Accessed 2 | . . 2 . Terminals 1 | . . 1 . Fabricators . | . . . . Repair Stations . | . . . . Recycling Units 1 | . . 1 . Scanalyzers . | . . . . Garrison Access . | . . . . Total Hacks 5 | . . 5 . Successful 5 | . . 5 . Failed . | . . . . Catastrophic . | . . . . Database Lockouts . | . . . . Manual . | . . . . Terminals 1 | . . 1 . Fabricators . | . . . . Repair Stations . | . . . . Recycling Units 4 | . . 4 . Scanalyzers . | . . . . Garrison Access . | . . . . Terminal Hacks 1 | . . 1 . Zone Layout 1 | . . 1 . Fabricator Hacks . | . . . . Repair Station Hacks . | . . . . Recycling Unit Hacks 4 | . . 4 . Process 1 | . . 1 . Report Inventory 1 | . . 1 . Retrieve Matter 1 | . . 1 . Retrieve Components 1 | . . 1 . Scanalyzer . | . . . . Garrison Access Hacks . | . . . . Unauthorized Hacks . | . . . . Terminals . | . . . . Fabricators . | . . . . Repair Stations . | . . . . Recycling Units . | . . . . Scanalyzers . | . . . . Garrison Access . | . . . . Data Cores Recovered . | . . . . Used . | . . . . Hacking Detections . | . . . . Full Trace Events . | . . . . Feedback Events . | . . . . Feedback Blocked . | . . . . Robot Schematics Acquired . | . . . . Robots Built . | . . . . Matter . | . . . . Time . | . . . . Total Robot Build Rating . | . . . . Part Schematics Acquired . | . . . . Parts Built . | . . . . Matter . | . . . . Time . | . . . . Total Part Build Rating . | . . . . Parts Repaired . | . . . . Time . | . . . . Parts Recycled . | . . . . Recycled Matter 2 | . . 2 . Retrieved Matter 2 | . . 2 . Retrieved Components . | . . . . Parts Scanalyzed . | . . . . Part Schematics Acquired . | . . . . Parts Damaged . | . . . . Bothacking | -11 -10 -9 -9 ------------ Run | Scr Mat Mat Min Used RIF Installer . | . . . . Robots Hacked . | . . . . Non-combat . | . . . . Combat . | . . . . Robot Hacks Applied . | . . . . Relay Couplers Released . | . . . . Robots Rewired . | . . . . Allies Hacked . | . . . . Hacks Repelled . | . . . . Allies | -11 -10 -9 -9 -------- Run | Scr Mat Mat Min Total Allies . | . . . . Largest Group . | . . . . Highest-Rated Group . | . . . . Highest-Rated Ally . | . . . . Total Orders . | . . . . Ally Attacks . | . . . . Total Damage . | . . . . Kills . | . . . . Allies Corrupted . | . . . . Allies Melted . | . . . . Intel | -11 -10 -9 -9 ------- Run | Scr Mat Mat Min Robot Analysis Total . | . . . . Derelict Logs Recovered . | . . . . Drone Launches . | . . . . Drone Recoveries . | . . . . Exploration | -11 -10 -9 -9 ------------- Run | Scr Mat Mat Min Turns Passed 971 | 155 394 289 133 Spaces Moved 635 | 81 213 243 98 Core 46 | 30 . . 16 Treads . | . . . . Legs 264 | 51 213 . . Wheels 325 | . . 243 82 Hover . | . . . . Flight . | . . . . Fastest Speed 50 | 50 120 85 90 Average Speed 103 | 94 120 94 96 Slowest Speed 120 | 120 120 110 100 Overloaded Moves . | . . . . Propulsion Burnouts . | . . . . Robots Hopped . | . . . . Cave-ins Triggered . | . . . . Exploration Rate (%) 20 | 5 31 17 30 Regions Visited 3 Branch Regions 1 Pre-discovered Areas . | . . . . Known Exits Taken . | . . . . Unknown Exits Taken 3 | 1 1 1 . Scrap Searched . | . . . . Spaces Dug . | . . . . Terrain Destroyed 26 | . 4 22 . Melee . | . . . . Projectile . | . . . . AOE 26 | . 4 22 . Actions | -11 -10 -9 -9 --------- Run | Scr Mat Mat Min Total 841 | 149 293 277 122 Wait 85 | 45 39 1 . Move 632 | 80 212 242 98 Hop . | . . . . Pick Up 21 | 11 3 4 3 Fast Attach 3 | . 1 2 . Attach 18 | 7 1 7 3 Detach . | . . . . Swap 2 | . . 2 . Drop 6 | . 1 5 . Fire 72 | 6 34 14 18 Melee . | . . . . Ram . | . . . . Kick 2 | . 2 . . Crush . | . . . . Escape Stasis . | . . . . Rewire . | . . . . Trap . | . . . . Miscellaneous . | . . . . Route ------- -11/Scrapyard -10/Materials (discovered 3 exits: *Mat x2 / [*Min]) -9/Materials -9/Mines History --------- Turn | Location | Event 3 | -11/Scrapyard | Discovered new exit (range 16) 156 | -11/Scrapyard | Entered Materials 176 | -10/Materials | Discovered new exit (range 16) 318 | -10/Materials | Build established: Mutant 433 | -10/Materials | Discovered new exit (range 14) 498 | -10/Materials | Discovered new exit (range 11) 550 | -10/Materials | Entered another Materials area 550 | -9/Materials | Evolved 2 slots: Propulsion x1, Utility x1 737 | -9/Materials | Discovered new exit (range 10) 839 | -9/Materials | Entered Mines 861 | -9/Mines | Met a Derelict bent on vengeance 863 | -9/Mines | Lost 6 parts (1p3n1u1w) 920 | -9/Mines | Core integrity fell below 50% 944 | -9/Mines | Core integrity fell below 20% 972 | -9/Mines | Destroyed by S-10 Pest with Light Assault Rifle Last Messages --------------- 00880_ K-01 Serf collects debris. 00881_ Acquired Com. Wheel. 00883_ K-01 Serf collects debris. 00887_ Acquired Com. Wheel. 00892_ Lgt. Assault Rifle destroyed. 00896_ K-01 Serf collects debris. 00904_ S-10 Pest destroyed. 00904_ K-01 Serf collects debris. 00905_ R-06 Scavenger collects Mining Laser. 00906_ Lgt. Ion Engine destroyed. 00907_ K-01 Serf collects debris. 00917_ R-06 Scavenger collects Flight Unit. 00918_ K-01 Serf collects debris. 00926_ Arm. Wheel destroyed. 00926_ K-01 Serf collects debris. 00934_ Com. Wheel destroyed. 00936_ Structural Scanner destroyed. 00945_ K-01 Serf collects debris. 00962_ Com. Wheel destroyed. 00965_ K-01 Serf collects debris. Map ----- +----------------------------------------------------+ | ??????####????????????????????????? | | ?????## ##???????????????????????? | | ????## #???????????????????????? | | ????# #???????????????????????? | | ????# #??????????????????? #??? | | ????# ######??????????!! #??? | | ????## ## ==######## !!! #??? | | ?????# ### %* !!! #??? | | ?????# ??# #??? | | " ## ### ## ##### #??? | | "%" ### #???????????????? | | " ##### % #?# #####???????????? | | ????????## ##?# $ #???????????? | | ?????????## #?## ### #???????????? | | ?????????## ### ### #???????????? | | ????????## ## #???????????? | | ???###??# t% #?????###???? | | ??## #??# #???## ##??? | | ??# #### r ##???# #??? | | ??# ## #????# ##?? | | ??# ##???# #?? | | ?## k ##?## #?? | | ## ###s #??? | | # s s ##??? | | # ##### ####???? | | # ##???## @##??????? | | ## ### ##?????# #???????? | | ?#####?## #??????## #??????? | | ????????# ##??????## #????? | | ????????## ####????## #???? | | ?????????## ##????## #???? | | ??????????## ##????## #???? | | ???????????## #?????#######???? | | ???????????## #???????????????? | | ?????####### #???????????????? | | ?????# #???????????????? | | ?????# #???????????????? | | ?????## ##???????????????? | | ??????### ##????????????????? | | ????????## ###?????????????????? | | ?????????######???????????????????? | | ??????????????????????????????????? | | ??????????????????????????????????? | | ??????????????????????????????????? | | ??????????????????????????????????? | | ??????????????????????????????????? | | ??????????????????????????????????? | | ??????????????????????????????????? | | ??????????????????????????????????? | | ??????????????????????????????????? | +----------------------------------------------------+ Best States ------------- Heat Dissipation 28 Energy Generation 10 Energy Capacity 250 Matter Stores 300 Matter Capacity 300 Sight Range 16 Terrain Scan Range 16 Terrain Scan Density 10 Utility Shielding 33 Evasion (%) 50 Item Schematics ----------------- None Robot Schematics ------------------ None Fabricated ------------ Nothing Alien Tech Used ----------------- None Achievements -------------- Crack Shot Dynamic Key Everything Is Under Control First Step to Greatness Fist Fight Hey, That's Mine! I Survived The Infestation It Was An Accident, I Swear Loot Pinata Made in Tau Ceti IV More Dakka Please Novice Programmer One Hack Too Far Part-time Mechanic Risk Taker Safety First Shopping List Significant Disruption Slippery One Storm Trooper System Compromised Uninvited Guest Unlikely Earthworm Challenges ------------ None Game ------ Seed TargetComponentMatrix Manual? 0 Play Time 00:21:42 Cumulative 4.0 hours Start 2019.10.22 @ 00:43:45 End 2019.10.22 @ 01:03:42 Sessions 1 Manual Loads 0 Difficulty Rogue Special Mode None Game No. 9 Rogue 9 Adventurer 0 Explorer 0 Win Type - Total 0 Types 0/0/0/0/0/0/0 Lore% 2 Gallery% 8 Achievement% 8 Wizard Run 0 Options --------- ASCII 0 Keyboard 0 Movement Mouse Keybinds 0 Fullscreen 2 Font 18/SmallcapsGlow Map View 76x50 Tactical HUD 1 Map Filters NONE Filters NONE Steam 1 RUN: 0548df29-1889-4eab-810a-d4852f163849